[Event "Late-Titled-Tuesday-Blitz-March-19-2024"]
[Site "Chess.com"]
[Date "2024.03.19"]
[Round "4"]
[White "Mariia89"]
[Black "MathiasWomacka"]
[Result "1-0"]
[WhiteElo "2278"]
[BlackElo "2498"]
[TimeControl "180+1"]
[EndTime "14:39:15 PDT"]
[Termination "Mariia89 won by resignation"]

1. d4 {[%clk 0:02:59.4]} 1... Nf6 {[%clk 0:02:57.8]} 2. Nf3 {[%clk 0:02:59.7]}
2... e6 {[%clk 0:02:58.2]} 3. Bg5 {[%clk 0:02:59.4]} 3... c5 {[%clk 0:02:58]} 4.
e3 {[%clk 0:02:59.4]} 4... Qb6 {[%clk 0:02:58.4]} 5. Qc1 {[%clk 0:02:58.9]} 5...
Nc6 {[%clk 0:02:57.1]} 6. c3 {[%clk 0:02:59]} 6... d5 {[%clk 0:02:56.8]} 7. Bd3
{[%clk 0:02:57.4]} 7... Nh5 {[%clk 0:02:46.5]} 8. O-O {[%clk 0:02:50]} 8... h6
{[%clk 0:02:46.2]} 9. Bh4 {[%clk 0:02:49.7]} 9... g5 {[%clk 0:02:43.9]} 10. Bg3
{[%clk 0:02:49.8]} 10... Nxg3 {[%clk 0:02:44.2]} 11. hxg3 {[%clk 0:02:50.1]}
11... Bg7 {[%clk 0:02:44.3]} 12. Nbd2 {[%clk 0:02:46.9]} 12... Bd7 {[%clk
0:02:43.6]} 13. a4 {[%clk 0:02:45.5]} 13... O-O-O {[%clk 0:02:33]} 14. a5 {[%clk
0:02:35.1]} 14... Qc7 {[%clk 0:02:31.8]} 15. dxc5 {[%clk 0:02:31.7]} 15... g4
{[%clk 0:02:16]} 16. Nd4 {[%clk 0:02:25.9]} 16... Ne5 {[%clk 0:02:15.2]} 17. Be2
{[%clk 0:02:14.9]} 17... Qxc5 {[%clk 0:02:14.6]} 18. b4 {[%clk 0:02:00]} 18...
Qc7 {[%clk 0:02:12.6]} 19. b5 {[%clk 0:01:52.7]} 19... Kb8 {[%clk 0:01:23.6]}
20. b6 {[%clk 0:01:40.6]} 20... axb6 {[%clk 0:01:23.8]} 21. axb6 {[%clk
0:01:41.5]} 21... Qxb6 {[%clk 0:01:23.9]} 22. Qa3 {[%clk 0:01:41.1]} 22... Bc6
{[%clk 0:01:04.8]} 23. Rfb1 {[%clk 0:01:37.7]} 23... Bf8 {[%clk 0:00:54.6]} 24.
Qa8+ {[%clk 0:01:30.7]} 24... Kc7 {[%clk 0:00:54.3]} 25. Qxd8+ {[%clk
0:01:27.8]} 25... Kxd8 {[%clk 0:00:54.7]} 26. Rxb6 {[%clk 0:01:28.3]} 26... Kc7
{[%clk 0:00:55]} 27. Rbb1 {[%clk 0:01:21.5]} 27... h5 {[%clk 0:00:51.8]} 28. c4
{[%clk 0:01:16.3]} 28... dxc4 {[%clk 0:00:48.8]} 29. Nxc4 {[%clk 0:01:16]} 29...
Nxc4 {[%clk 0:00:47.7]} 30. Bxc4 {[%clk 0:01:15.8]} 30... Bg7 {[%clk 0:00:44.4]}
31. Ra7 {[%clk 0:01:09.4]} 31... Bxd4 {[%clk 0:00:40.7]} 32. exd4 {[%clk
0:01:09.2]} 32... Rd8 {[%clk 0:00:41.6]} 33. Rd1 {[%clk 0:00:49.7]} 33... Kd6
{[%clk 0:00:38.9]} 34. Raa1 {[%clk 0:00:45.5]} 34... b5 {[%clk 0:00:32]} 35. Bf1
{[%clk 0:00:42.6]} 35... Rb8 {[%clk 0:00:30.7]} 36. Rab1 {[%clk 0:00:42.6]}
36... b4 {[%clk 0:00:30.5]} 37. Rb2 {[%clk 0:00:42.3]} 37... Bd5 {[%clk
0:00:28.2]} 38. Rdb1 {[%clk 0:00:40.5]} 38... b3 {[%clk 0:00:28]} 39. Bd3 {[%clk
0:00:39.3]} 39... Rb4 {[%clk 0:00:26.7]} 40. Be2 {[%clk 0:00:23.4]} 40... Rxd4
{[%clk 0:00:25.4]} 41. Bd1 {[%clk 0:00:23.5]} 41... f5 {[%clk 0:00:19.2]} 42.
Bxb3 {[%clk 0:00:21.6]} 42... Bxb3 {[%clk 0:00:18.6]} 43. Rxb3 {[%clk
0:00:21.6]} 43... f4 {[%clk 0:00:17.3]} 44. gxf4 {[%clk 0:00:21.6]} 44... Rxf4
{[%clk 0:00:17.6]} 45. Re3 {[%clk 0:00:21.6]} 45... h4 {[%clk 0:00:16.1]} 46.
Rbe1 {[%clk 0:00:21.7]} 46... Rf6 {[%clk 0:00:15.3]} 47. Re4 {[%clk 0:00:21.4]}
47... g3 {[%clk 0:00:14.9]} 48. fxg3 {[%clk 0:00:21.6]} 48... hxg3 {[%clk
0:00:15.8]} 49. R4e3 {[%clk 0:00:21.9]} 49... Rg6 {[%clk 0:00:15.8]} 50. Rf1
{[%clk 0:00:21.9]} 50... Ke7 {[%clk 0:00:16.7]} 51. Rff3 {[%clk 0:00:22.1]} 1-0

[Event "Late-Titled-Tuesday-Blitz-March-19-2024"]
[Site "Chess.com"]
[Date "2024.03.19"]
[Round "4"]
[White "AsterPhoenix"]
[Black "Heydarli77"]
[Result "0-1"]
[WhiteElo "2644"]
[BlackElo "2382"]
[TimeControl "180+1"]
[EndTime "14:39:18 PDT"]
[Termination "Heydarli77 won on time"]

1. e4 {[%clk 0:03:00.9]} 1... c5 {[%clk 0:02:58.6]} 2. Nf3 {[%clk 0:03:00.9]}
2... e6 {[%clk 0:02:57.2]} 3. d4 {[%clk 0:03:00.3]} 3... cxd4 {[%clk 0:02:57.1]}
4. Nxd4 {[%clk 0:03:01.2]} 4... a6 {[%clk 0:02:57.6]} 5. Bd3 {[%clk 0:03:00]}
5... Nf6 {[%clk 0:02:54]} 6. O-O {[%clk 0:02:59]} 6... d6 {[%clk 0:02:53.3]} 7.
c4 {[%clk 0:02:50]} 7... b6 {[%clk 0:02:50.5]} 8. Nc3 {[%clk 0:02:49.8]} 8...
Bb7 {[%clk 0:02:50]} 9. b3 {[%clk 0:02:47.7]} 9... Nbd7 {[%clk 0:02:49.2]} 10.
Bb2 {[%clk 0:02:47.9]} 10... Be7 {[%clk 0:02:46.5]} 11. Qe2 {[%clk 0:02:47.5]}
11... O-O {[%clk 0:02:45.7]} 12. Rae1 {[%clk 0:02:45.3]} 12... Qc7 {[%clk
0:02:44.2]} 13. Kh1 {[%clk 0:02:43.3]} 13... Rfe8 {[%clk 0:02:42.3]} 14. f4
{[%clk 0:02:42.9]} 14... Bf8 {[%clk 0:02:35.9]} 15. f5 {[%clk 0:02:31.1]} 15...
Ne5 {[%clk 0:02:32.9]} 16. Bb1 {[%clk 0:02:30.4]} 16... Nc6 {[%clk 0:02:25.6]}
17. Nxc6 {[%clk 0:02:01.7]} 17... Bxc6 {[%clk 0:02:20.9]} 18. fxe6 {[%clk
0:01:56.9]} 18... Rxe6 {[%clk 0:02:15.1]} 19. Qf2 {[%clk 0:01:36]} 19... Ng4
{[%clk 0:02:10.5]} 20. Qf4 {[%clk 0:01:26.1]} 20... Ne5 {[%clk 0:02:07.6]} 21.
Nd5 {[%clk 0:01:25.9]} 21... Bxd5 {[%clk 0:02:07.5]} 22. exd5 {[%clk 0:01:25.5]}
22... Rf6 {[%clk 0:02:04.6]} 23. Qh4 {[%clk 0:01:04.3]} 23... Rh6 {[%clk
0:02:02.9]} 24. Qg3 {[%clk 0:01:01.4]} 24... Rg6 {[%clk 0:01:58.7]} 25. Bxg6
{[%clk 0:01:00.3]} 25... Nxg6 {[%clk 0:01:57.2]} 26. Re4 {[%clk 0:00:52.8]}
26... b5 {[%clk 0:01:54.3]} 27. Rfe1 {[%clk 0:00:50.7]} 27... bxc4 {[%clk
0:01:52.7]} 28. Rxc4 {[%clk 0:00:50.3]} 28... Qa5 {[%clk 0:01:50.9]} 29. h4
{[%clk 0:00:32.3]} 29... Qxd5 {[%clk 0:01:49.5]} 30. Qg5 {[%clk 0:00:20.6]}
30... Ne5 {[%clk 0:01:40.4]} 31. Bxe5 {[%clk 0:00:16.6]} 31... dxe5 {[%clk
0:01:39.3]} 32. Qxe5 {[%clk 0:00:17.5]} 32... Qd2 {[%clk 0:01:36.7]} 33. Qe2
{[%clk 0:00:16.9]} 33... Qa5 {[%clk 0:01:30.7]} 34. Rf1 {[%clk 0:00:14.8]} 34...
Rd8 {[%clk 0:01:26.5]} 35. Qf3 {[%clk 0:00:13.4]} 35... f6 {[%clk 0:01:22.1]}
36. Ra4 {[%clk 0:00:10.1]} 36... Qb5 {[%clk 0:01:18.7]} 37. Rc4 {[%clk
0:00:09.3]} 37... h5 {[%clk 0:01:14.3]} 38. Rd1 {[%clk 0:00:08.8]} 38... Rxd1+
{[%clk 0:01:09.3]} 39. Qxd1 {[%clk 0:00:09.7]} 39... Qa5 {[%clk 0:01:04.4]} 40.
Rc8 {[%clk 0:00:09]} 40... Qb4 {[%clk 0:01:01.2]} 41. Qd5+ {[%clk 0:00:08.5]}
41... Kh7 {[%clk 0:01:00.5]} 42. Qxh5+ {[%clk 0:00:09.4]} 42... Kg8 {[%clk
0:01:00.7]} 43. Qd5+ {[%clk 0:00:07.6]} 43... Kh7 {[%clk 0:01:00.5]} 44. Qe6
{[%clk 0:00:06]} 44... Qxh4+ {[%clk 0:00:57.8]} 45. Qh3 {[%clk 0:00:04.6]} 45...
Qxh3+ {[%clk 0:00:56.5]} 46. gxh3 {[%clk 0:00:05.5]} 46... Bb4 {[%clk
0:00:55.7]} 47. Ra8 {[%clk 0:00:05.4]} 47... a5 {[%clk 0:00:55.4]} 48. Kg2
{[%clk 0:00:06.3]} 48... g5 {[%clk 0:00:54.5]} 49. Kf3 {[%clk 0:00:06.7]} 49...
Kg6 {[%clk 0:00:54.7]} 50. Ke4 {[%clk 0:00:04.7]} 50... f5+ {[%clk 0:00:53.9]}
51. Ke5 {[%clk 0:00:05.1]} 51... Bc3+ {[%clk 0:00:54.2]} 52. Ke6 {[%clk
0:00:05.4]} 52... f4 {[%clk 0:00:54.6]} 53. Rf8 {[%clk 0:00:03.9]} 53... Bb4
{[%clk 0:00:52.1]} 54. Rf5 {[%clk 0:00:03.1]} 54... Bd2 {[%clk 0:00:47]} 55. Ke5
{[%clk 0:00:02.5]} 55... Kh5 {[%clk 0:00:46.8]} 56. Ke4 {[%clk 0:00:02.2]} 56...
Kh4 {[%clk 0:00:46.8]} 57. Kf3 {[%clk 0:00:02.3]} 57... Bc3 {[%clk 0:00:41]} 58.
Rc5 {[%clk 0:00:01.7]} 58... Bb4 {[%clk 0:00:39.8]} 59. Rc8 {[%clk 0:00:02.2]}
59... Kh5 {[%clk 0:00:38.9]} 0-1

[Event "Late-Titled-Tuesday-Blitz-March-19-2024"]
[Site "Chess.com"]
[Date "2024.03.19"]
[Round "4"]
[White "Zohid6"]
[Black "Polish_fighter3000"]
[Result "0-1"]
[WhiteElo "2876"]
[BlackElo "3132"]
[TimeControl "180+1"]
[EndTime "14:39:20 PDT"]
[Termination "Polish_fighter3000 won by resignation"]

1. e4 {[%clk 0:03:00.9]} 1... c6 {[%clk 0:02:57]} 2. d4 {[%clk 0:03:00.1]} 2...
d5 {[%clk 0:02:57.4]} 3. e5 {[%clk 0:03:00.6]} 3... Bf5 {[%clk 0:02:56.8]} 4.
Nf3 {[%clk 0:03:01]} 4... e6 {[%clk 0:02:57]} 5. Be2 {[%clk 0:03:00.9]} 5... c5
{[%clk 0:02:56.1]} 6. O-O {[%clk 0:03:00.2]} 6... Nc6 {[%clk 0:02:52.9]} 7. Be3
{[%clk 0:03:00.4]} 7... cxd4 {[%clk 0:02:47.9]} 8. Nxd4 {[%clk 0:02:58.7]} 8...
Nge7 {[%clk 0:02:48.5]} 9. f4 {[%clk 0:02:51.9]} 9... Nxd4 {[%clk 0:02:42.2]}
10. Bxd4 {[%clk 0:02:50.2]} 10... Nc6 {[%clk 0:02:42.7]} 11. Bf2 {[%clk
0:02:49.9]} 11... g5 {[%clk 0:02:37.9]} 12. Bg4 {[%clk 0:02:11.4]} 12... Bg6
{[%clk 0:02:31.5]} 13. c4 {[%clk 0:02:00.1]} 13... dxc4 {[%clk 0:02:22.2]} 14.
Qa4 {[%clk 0:01:53.8]} 14... gxf4 {[%clk 0:02:13.7]} 15. Bf3 {[%clk 0:01:45.5]}
15... Qc7 {[%clk 0:02:06.8]} 16. Nd2 {[%clk 0:01:39.3]} 16... Bg7 {[%clk
0:01:54.2]} 17. Bc5 {[%clk 0:01:32.8]} 17... Bd3 {[%clk 0:01:41]} 18. Nxc4
{[%clk 0:01:24.2]} 18... Bxc4 {[%clk 0:01:36.2]} 19. Qxc4 {[%clk 0:01:25.1]}
19... Nxe5 {[%clk 0:00:49.9]} 20. Qa4+ {[%clk 0:01:11.4]} 20... Qd7 {[%clk
0:00:47.8]} 21. Qxf4 {[%clk 0:01:07.7]} 21... Nd3 {[%clk 0:00:37.4]} 22. Qg4
{[%clk 0:00:47.8]} 22... Bxb2 {[%clk 0:00:23.2]} 23. Rad1 {[%clk 0:00:45.3]}
23... O-O-O {[%clk 0:00:22.1]} 24. Be3 {[%clk 0:00:36.5]} 24... Kb8 {[%clk
0:00:13.5]} 25. Be4 {[%clk 0:00:30.5]} 25... f5 {[%clk 0:00:12.2]} 26. Qg3+
{[%clk 0:00:14.1]} 26... Be5 {[%clk 0:00:12.6]} 27. Bxa7+ {[%clk 0:00:03.4]}
27... Kxa7 {[%clk 0:00:08.7]} 28. Qxd3 {[%clk 0:00:04.3]} 28... Qd4+ {[%clk
0:00:05.9]} 29. Kh1 {[%clk 0:00:03.2]} 29... Qxe4 {[%clk 0:00:06]} 30. Qa3+
{[%clk 0:00:03.4]} 30... Kb8 {[%clk 0:00:06.4]} 31. Qe7 {[%clk 0:00:03.5]} 31...
Rxd1 {[%clk 0:00:05.8]} 32. Rxd1 {[%clk 0:00:04.4]} 32... Rc8 {[%clk 0:00:05.7]}
33. Qxe6 {[%clk 0:00:04.6]} 33... Bc7 {[%clk 0:00:03.9]} 34. Qh6 {[%clk
0:00:02.6]} 34... Re8 {[%clk 0:00:03.9]} 35. Rg1 {[%clk 0:00:02.9]} 35... f4
{[%clk 0:00:03.8]} 36. Qh5 {[%clk 0:00:02.4]} 36... Rg8 {[%clk 0:00:03.3]} 37.
h3 {[%clk 0:00:02.2]} 37... f3 {[%clk 0:00:03.3]} 38. Qxf3 {[%clk 0:00:02.4]}
38... Qxf3 {[%clk 0:00:03.2]} 39. gxf3 {[%clk 0:00:03.3]} 39... Rxg1+ {[%clk
0:00:03.5]} 40. Kxg1 {[%clk 0:00:04.2]} 40... Bf4 {[%clk 0:00:03.3]} 41. Kf2
{[%clk 0:00:04.7]} 41... Kc7 {[%clk 0:00:03.9]} 42. Ke2 {[%clk 0:00:05.4]} 42...
Kd6 {[%clk 0:00:04.4]} 43. Kd3 {[%clk 0:00:06.1]} 43... Kd5 {[%clk 0:00:05]} 44.
a4 {[%clk 0:00:06.1]} 44... Bc7 {[%clk 0:00:04.5]} 45. Kc3 {[%clk 0:00:05.5]}
45... Ba5+ {[%clk 0:00:03.8]} 46. Kd3 {[%clk 0:00:06.1]} 46... Ke5 {[%clk
0:00:04.2]} 47. Ke3 {[%clk 0:00:06.4]} 47... h5 {[%clk 0:00:04.2]} 0-1

[Event "Late-Titled-Tuesday-Blitz-March-19-2024"]
[Site "Chess.com"]
[Date "2024.03.19"]
[Round "4"]
[White "korkmaz16"]
[Black "KorolDimitriy75"]
[Result "1-0"]
[WhiteElo "2574"]
[BlackElo "2389"]
[TimeControl "180+1"]
[EndTime "14:39:20 PDT"]
[Termination "korkmaz16 won on time"]

1. e4 {[%clk 0:03:00.9]} 1... c5 {[%clk 0:02:59.8]} 2. Nf3 {[%clk 0:02:57.7]}
2... d6 {[%clk 0:03:00.2]} 3. d4 {[%clk 0:02:57.6]} 3... cxd4 {[%clk 0:03:01.1]}
4. Nxd4 {[%clk 0:02:58]} 4... Nf6 {[%clk 0:03:01.5]} 5. Nc3 {[%clk 0:02:58]}
5... g6 {[%clk 0:03:02.4]} 6. Be3 {[%clk 0:02:57.2]} 6... Bg7 {[%clk 0:03:02.7]}
7. f3 {[%clk 0:02:57.5]} 7... O-O {[%clk 0:03:03.2]} 8. Qd2 {[%clk 0:02:57.5]}
8... Nc6 {[%clk 0:03:03.4]} 9. Bc4 {[%clk 0:02:57.4]} 9... Bd7 {[%clk
0:03:03.3]} 10. O-O-O {[%clk 0:02:55.4]} 10... Qa5 {[%clk 0:03:03.3]} 11. Kb1
{[%clk 0:02:47.4]} 11... Rfc8 {[%clk 0:03:01.4]} 12. Bb3 {[%clk 0:02:47.4]}
12... Ne5 {[%clk 0:03:01.5]} 13. Bh6 {[%clk 0:02:42.9]} 13... Bxh6 {[%clk
0:02:58.6]} 14. Qxh6 {[%clk 0:02:42.3]} 14... Rxc3 {[%clk 0:02:57.8]} 15. bxc3
{[%clk 0:02:41.9]} 15... Qxc3 {[%clk 0:02:58.3]} 16. Qd2 {[%clk 0:02:42]} 16...
Qc5 {[%clk 0:02:53.6]} 17. Rhe1 {[%clk 0:02:23.6]} 17... a5 {[%clk 0:02:52.4]}
18. f4 {[%clk 0:02:09.2]} 18... Nc4 {[%clk 0:01:24.7]} 19. Bxc4 {[%clk
0:02:04.1]} 19... Qxc4 {[%clk 0:01:25.6]} 20. Qd3 {[%clk 0:02:01.1]} 20... Qc5
{[%clk 0:01:11.2]} 21. Nb3 {[%clk 0:01:59]} 21... Qa3 {[%clk 0:00:57.2]} 22. e5
{[%clk 0:01:55.7]} 22... Bf5 {[%clk 0:00:53.3]} 23. Qd4 {[%clk 0:01:46]} 23...
a4 {[%clk 0:00:24.8]} 24. Qb2 {[%clk 0:01:43.1]} 24... Qxb2+ {[%clk 0:00:19.4]}
25. Kxb2 {[%clk 0:01:43]} 25... axb3 {[%clk 0:00:20.3]} 26. axb3 {[%clk
0:01:43]} 26... dxe5 {[%clk 0:00:19.8]} 27. fxe5 {[%clk 0:01:42.5]} 27... Ng4
{[%clk 0:00:19.7]} 28. h3 {[%clk 0:01:38.9]} 28... Nh6 {[%clk 0:00:15.1]} 29. g4
{[%clk 0:01:34.7]} 29... Be6 {[%clk 0:00:15]} 30. Rd4 {[%clk 0:01:33.6]} 30...
Kg7 {[%clk 0:00:14.2]} 31. Rb4 {[%clk 0:01:33.3]} 31... Rb8 {[%clk 0:00:12.8]}
32. Rb6 {[%clk 0:01:28.4]} 32... Ng8 {[%clk 0:00:11.6]} 33. g5 {[%clk 0:01:25]}
33... Bxh3 {[%clk 0:00:11.1]} 34. Re4 {[%clk 0:01:22.7]} 34... Bf5 {[%clk
0:00:09.5]} 35. Reb4 {[%clk 0:01:22.4]} 35... Rc8 {[%clk 0:00:09.7]} 36. c4
{[%clk 0:01:21.6]} 36... h6 {[%clk 0:00:07.8]} 37. gxh6+ {[%clk 0:01:15.4]}
37... Kxh6 {[%clk 0:00:06.4]} 38. Rxb7 {[%clk 0:01:16]} 38... Rc5 {[%clk
0:00:05]} 39. R7b5 {[%clk 0:01:15.1]} 39... Rc6 {[%clk 0:00:04.5]} 40. Rb6
{[%clk 0:01:14.3]} 40... Rc7 {[%clk 0:00:04.1]} 41. Kc3 {[%clk 0:01:12.6]} 41...
Kg5 {[%clk 0:00:03.7]} 42. Kd4 {[%clk 0:01:10.8]} 42... Nh6 {[%clk 0:00:03.5]}
43. Rb7 {[%clk 0:01:08.9]} 43... Rc8 {[%clk 0:00:02.1]} 44. Rxe7 {[%clk
0:01:08.7]} 44... Be6 {[%clk 0:00:02.9]} 45. Rbb7 {[%clk 0:01:04.5]} 45... Nf5+
{[%clk 0:00:02.8]} 46. Kc3 {[%clk 0:01:04]} 46... Nxe7 {[%clk 0:00:03.7]} 47.
Rxe7 {[%clk 0:01:04.1]} 47... Kf5 {[%clk 0:00:04.2]} 48. Kd4 {[%clk 0:00:52.6]}
48... Rd8+ {[%clk 0:00:03.8]} 49. Kc3 {[%clk 0:00:52]} 49... Kxe5 {[%clk
0:00:04.4]} 50. b4 {[%clk 0:00:52.6]} 50... Kd6 {[%clk 0:00:02.8]} 51. Ra7
{[%clk 0:00:52.4]} 51... Rc8 {[%clk 0:00:02.3]} 52. Ra6+ {[%clk 0:00:50.8]}
52... Ke5 {[%clk 0:00:02.4]} 53. c5 {[%clk 0:00:50.7]} 53... g5 {[%clk
0:00:02.6]} 54. Ra5 {[%clk 0:00:49]} 54... g4 {[%clk 0:00:02.2]} 55. c6+ {[%clk
0:00:49.4]} 55... Kf4 {[%clk 0:00:02.3]} 56. b5 {[%clk 0:00:49.8]} 56... g3
{[%clk 0:00:02.3]} 57. Ra4+ {[%clk 0:00:49.3]} 57... Kf3 {[%clk 0:00:02.6]} 58.
Ra1 {[%clk 0:00:46.2]} 58... Bd5 {[%clk 0:00:02.3]} 59. Kd4 {[%clk 0:00:44.9]}
59... Bxc6 {[%clk 0:00:02.2]} 60. Ra3+ {[%clk 0:00:44.4]} 60... Kf2 {[%clk
0:00:02]} 61. b6 {[%clk 0:00:44.9]} 61... g2 {[%clk 0:00:01.7]} 62. Ra2+ {[%clk
0:00:45.8]} 62... Kf1 {[%clk 0:00:01.3]} 63. Ke3 {[%clk 0:00:46.6]} 63... g1=Q+
{[%clk 0:00:01.3]} 64. Kd3 {[%clk 0:00:46.6]} 1-0

[Event "Late-Titled-Tuesday-Blitz-March-19-2024"]
[Site "Chess.com"]
[Date "2024.03.19"]
[Round "4"]
[White "Smiechu"]
[Black "JiiHart"]
[Result "1-0"]
[WhiteElo "2427"]
[BlackElo "2203"]
[TimeControl "180+1"]
[EndTime "14:39:20 PDT"]
[Termination "Smiechu won by checkmate"]

1. e4 {[%clk 0:02:54.9]} 1... c5 {[%clk 0:02:59.2]} 2. Nf3 {[%clk 0:02:54.5]}
2... Nc6 {[%clk 0:02:59.3]} 3. d4 {[%clk 0:02:55]} 3... cxd4 {[%clk 0:02:59.4]}
4. Nxd4 {[%clk 0:02:55.9]} 4... g6 {[%clk 0:02:58.8]} 5. Nc3 {[%clk 0:02:56.1]}
5... Bg7 {[%clk 0:02:58.6]} 6. Be3 {[%clk 0:02:56.7]} 6... Nf6 {[%clk
0:02:58.8]} 7. Bc4 {[%clk 0:02:56]} 7... O-O {[%clk 0:02:49.1]} 8. Bb3 {[%clk
0:02:55.8]} 8... Qa5 {[%clk 0:02:43.6]} 9. O-O {[%clk 0:02:55]} 9... b5 {[%clk
0:01:47.9]} 10. Nd5 {[%clk 0:02:40.3]} 10... Nxd5 {[%clk 0:01:35]} 11. exd5
{[%clk 0:02:39.2]} 11... Ne5 {[%clk 0:01:24.5]} 12. c3 {[%clk 0:02:26.4]} 12...
Bb7 {[%clk 0:01:21.9]} 13. Qd2 {[%clk 0:02:10.2]} 13... a6 {[%clk 0:01:18.2]}
14. Bh6 {[%clk 0:02:08.7]} 14... Nc4 {[%clk 0:01:14]} 15. Qg5 {[%clk 0:01:59.2]}
15... Bxh6 {[%clk 0:00:58.2]} 16. Qxh6 {[%clk 0:01:59]} 16... Bxd5 {[%clk
0:00:58.4]} 17. Rad1 {[%clk 0:01:53]} 17... e6 {[%clk 0:00:45.5]} 18. Rfe1
{[%clk 0:01:49.6]} 18... Qd8 {[%clk 0:00:37.5]} 19. Nf5 {[%clk 0:01:07.5]} 19...
Qf6 {[%clk 0:00:19.9]} 20. Bxc4 {[%clk 0:00:54.5]} 20... Bxc4 {[%clk 0:00:16.3]}
21. Ne3 {[%clk 0:00:43.8]} 21... d5 {[%clk 0:00:16]} 22. b3 {[%clk 0:00:40.6]}
22... Qxc3 {[%clk 0:00:15.4]} 23. bxc4 {[%clk 0:00:40.1]} 23... bxc4 {[%clk
0:00:16]} 24. Ng4 {[%clk 0:00:36.2]} 24... Qg7 {[%clk 0:00:15.8]} 25. Qf4 {[%clk
0:00:35.4]} 25... f5 {[%clk 0:00:12.1]} 26. Ne5 {[%clk 0:00:33.2]} 26... Rfe8
{[%clk 0:00:12.5]} 27. Nf3 {[%clk 0:00:29.4]} 27... Rad8 {[%clk 0:00:12.2]} 28.
Re5 {[%clk 0:00:27.8]} 28... Qxe5 {[%clk 0:00:10.7]} 29. Qxe5 {[%clk 0:00:27.5]}
29... Kf7 {[%clk 0:00:10.1]} 30. Ng5+ {[%clk 0:00:27.1]} 30... Kg8 {[%clk
0:00:08.7]} 31. Nxe6 {[%clk 0:00:27.2]} 31... Rd7 {[%clk 0:00:05.1]} 32. Rxd5
{[%clk 0:00:27]} 32... Rde7 {[%clk 0:00:05.4]} 33. Rd6 {[%clk 0:00:21.5]} 33...
c3 {[%clk 0:00:05.8]} 34. Qxc3 {[%clk 0:00:21.1]} 34... Rxe6 {[%clk 0:00:05.6]}
35. Rxe6 {[%clk 0:00:21.3]} 35... Rxe6 {[%clk 0:00:05.9]} 36. h3 {[%clk
0:00:20.4]} 36... Kf7 {[%clk 0:00:05.5]} 37. Qc7+ {[%clk 0:00:18.8]} 37... Kf6
{[%clk 0:00:05.4]} 38. Qxh7 {[%clk 0:00:18.2]} 38... Rd6 {[%clk 0:00:04.3]} 39.
Qh4+ {[%clk 0:00:17.7]} 39... Ke6 {[%clk 0:00:04.2]} 40. Qa4 {[%clk 0:00:17.6]}
40... Rd5 {[%clk 0:00:03.5]} 41. g3 {[%clk 0:00:17.7]} 41... a5 {[%clk
0:00:02.9]} 42. Kg2 {[%clk 0:00:18]} 42... Ke5 {[%clk 0:00:03.2]} 43. h4 {[%clk
0:00:18.2]} 43... Ke6 {[%clk 0:00:03.8]} 44. f3 {[%clk 0:00:18.1]} 44... Kd6
{[%clk 0:00:03.5]} 45. g4 {[%clk 0:00:17.8]} 45... Rd2+ {[%clk 0:00:03.2]} 46.
Kg3 {[%clk 0:00:17.6]} 46... f4+ {[%clk 0:00:04.1]} 47. Kxf4 {[%clk 0:00:17.4]}
47... Rd4+ {[%clk 0:00:05]} 48. Qxd4+ {[%clk 0:00:16.6]} 48... Ke6 {[%clk
0:00:05.5]} 49. Qe5+ {[%clk 0:00:16.5]} 49... Kd7 {[%clk 0:00:04.1]} 50. Qf6
{[%clk 0:00:16.7]} 50... a4 {[%clk 0:00:04]} 51. Ke5 {[%clk 0:00:17.3]} 51... a3
{[%clk 0:00:04.7]} 52. Qd6+ {[%clk 0:00:17.8]} 52... Ke8 {[%clk 0:00:04.9]} 53.
Qc7 {[%clk 0:00:18.1]} 53... g5 {[%clk 0:00:05.2]} 54. Kf6 {[%clk 0:00:18.4]}
54... gxh4 {[%clk 0:00:04.3]} 55. Qc8# {[%clk 0:00:18.8]} 1-0

[Event "Late-Titled-Tuesday-Blitz-March-19-2024"]
[Site "Chess.com"]
[Date "2024.03.19"]
[Round "4"]
[White "tolimachess"]
[Black "nindjaxx8"]
[Result "1-0"]
[WhiteElo "2467"]
[BlackElo "2657"]
[TimeControl "180+1"]
[EndTime "14:39:22 PDT"]
[Termination "tolimachess won by resignation"]

1. e4 {[%clk 0:02:57.4]} 1... e6 {[%clk 0:03:00.7]} 2. d4 {[%clk 0:02:50.3]}
2... d5 {[%clk 0:03:01.6]} 3. e5 {[%clk 0:02:50.9]} 3... c5 {[%clk 0:03:01.4]}
4. c3 {[%clk 0:02:51.6]} 4... Nc6 {[%clk 0:03:02]} 5. Nf3 {[%clk 0:02:52.2]}
5... Qb6 {[%clk 0:03:02.6]} 6. a3 {[%clk 0:02:50.5]} 6... Nh6 {[%clk 0:03:00.2]}
7. Bd3 {[%clk 0:02:46]} 7... Bd7 {[%clk 0:02:50.5]} 8. Bc2 {[%clk 0:02:36.4]}
8... cxd4 {[%clk 0:02:48.4]} 9. cxd4 {[%clk 0:02:37.3]} 9... Be7 {[%clk
0:02:41.8]} 10. Nc3 {[%clk 0:02:30.7]} 10... Rc8 {[%clk 0:02:29.9]} 11. O-O
{[%clk 0:02:24.3]} 11... Na5 {[%clk 0:02:11.9]} 12. Bxh6 {[%clk 0:02:19.6]}
12... gxh6 {[%clk 0:02:10.7]} 13. Na4 {[%clk 0:02:15.4]} 13... Qd8 {[%clk
0:02:04.6]} 14. Nc5 {[%clk 0:01:58.2]} 14... Nc4 {[%clk 0:01:42.4]} 15. Nxd7
{[%clk 0:01:51]} 15... Qxd7 {[%clk 0:01:41.1]} 16. Ba4 {[%clk 0:01:50.7]} 16...
b5 {[%clk 0:01:41.2]} 17. b3 {[%clk 0:01:46]} 17... Nxa3 {[%clk 0:01:33.1]} 18.
Qd2 {[%clk 0:01:37.3]} 18... bxa4 {[%clk 0:01:31.8]} 19. bxa4 {[%clk 0:01:36.9]}
19... Rg8 {[%clk 0:01:29.3]} 20. Qxh6 {[%clk 0:01:36.2]} 20... Bf8 {[%clk
0:01:19.1]} 21. Qxh7 {[%clk 0:01:36.2]} 21... Rg7 {[%clk 0:01:18.6]} 22. Qh8
{[%clk 0:01:34.2]} 22... Qxa4 {[%clk 0:01:09.6]} 23. Rfc1 {[%clk 0:01:30.1]}
23... Rxc1+ {[%clk 0:01:07.1]} 24. Rxc1 {[%clk 0:01:31]} 24... Nc4 {[%clk
0:01:05.4]} 25. Rb1 {[%clk 0:01:27.5]} 25... Nb6 {[%clk 0:00:40.6]} 26. h4
{[%clk 0:01:18.9]} 26... Qc2 {[%clk 0:00:35.8]} 27. Re1 {[%clk 0:01:09.8]} 27...
Qf5 {[%clk 0:00:16.4]} 28. Re3 {[%clk 0:01:04.1]} 28... Rh7 {[%clk 0:00:13.4]}
29. Qg8 {[%clk 0:01:03.7]} 29... Rg7 {[%clk 0:00:13.8]} 30. Qh8 {[%clk
0:01:03.5]} 30... Qg4 {[%clk 0:00:13.6]} 31. g3 {[%clk 0:00:52.3]} 31... Qg6
{[%clk 0:00:09.8]} 32. h5 {[%clk 0:00:41.9]} 32... Qb1+ {[%clk 0:00:10.3]} 33.
Kg2 {[%clk 0:00:41.6]} 33... Rh7 {[%clk 0:00:10.3]} 34. Qg8 {[%clk 0:00:34.4]}
34... Rxh5 {[%clk 0:00:10.3]} 35. Re1 {[%clk 0:00:33.1]} 35... Qg6 {[%clk
0:00:07.5]} 36. Qxg6 {[%clk 0:00:32.1]} 36... fxg6 {[%clk 0:00:08.4]} 37. Ra1
{[%clk 0:00:32.2]} 37... Nc8 {[%clk 0:00:08.1]} 38. Ra6 {[%clk 0:00:32.2]} 38...
Kd7 {[%clk 0:00:08.2]} 39. g4 {[%clk 0:00:32.2]} 39... Rh7 {[%clk 0:00:07]} 40.
Ng5 {[%clk 0:00:32.7]} 40... Re7 {[%clk 0:00:07.5]} 41. f4 {[%clk 0:00:28.5]}
41... Bh6 {[%clk 0:00:07.8]} 42. Nh3 {[%clk 0:00:29]} 42... Kc7 {[%clk
0:00:06.5]} 43. f5 {[%clk 0:00:27]} 43... gxf5 {[%clk 0:00:05.8]} 44. gxf5
{[%clk 0:00:27.9]} 44... Bf8 {[%clk 0:00:02.2]} 45. f6 {[%clk 0:00:24.9]} 45...
Rf7 {[%clk 0:00:02.5]} 46. Ng5 {[%clk 0:00:24.1]} 46... Rd7 {[%clk 0:00:01.9]}
47. Rxe6 {[%clk 0:00:21.2]} 47... Kb7 {[%clk 0:00:02.3]} 48. Re8 {[%clk
0:00:21.3]} 48... Bb4 {[%clk 0:00:02]} 49. e6 {[%clk 0:00:21.5]} 49... Rc7
{[%clk 0:00:02.5]} 50. e7 {[%clk 0:00:19.4]} 50... a5 {[%clk 0:00:02.9]} 51. Ne6
{[%clk 0:00:18.2]} 51... Rd7 {[%clk 0:00:02.9]} 52. Rxc8 {[%clk 0:00:16.8]}
52... Kxc8 {[%clk 0:00:03]} 53. e8=Q+ {[%clk 0:00:16.9]} 53... Rd8 {[%clk
0:00:03.2]} 54. Qxd8+ {[%clk 0:00:17.2]} 1-0